fUSD/lending_fUSD_20241221
["ID","MTS","AMOUNT","RATE_DAILY","PERIOD"]
[346177588,1734765073849,-693.7,0.00021095,2]
[346177589,1734765073859,-828.43,0.00021095,2]
[346177590,1734765073869,-572.81,0.00021095,2]
[346177591,1734765073878,-1349.96,0.00021095,2]
[346177592,1734765073888,-4988.53,0.00021095,2]
[346177593,1734765073898,-903.09,0.00021095,2]
[346177594,1734765073908,-1611.49,0.00021095,2]
[346177595,1734765073918,-880.44,0.00021095,2]
[346177596,1734765073928,-500.0,0.00021095,2]
[346177597,1734765073938,-200.0,0.00021096,2]
[346177598,1734765073948,-3000.0,0.000211,2]
[346177599,1734765073959,-1506.45226281,0.00021151,2]
[346177600,1734765073969,-1506.45226281,0.00021233,2]
[346177601,1734765073979,-1506.45226281,0.00021342,2]
[346177602,1734765073990,-500.0,0.00021366,2]
[346177603,1734765074000,-609.12,0.00021366,2]
[346177604,1734765074010,-731.44,0.00021366,2]
[346177605,1734765074019,-500.0,0.00021366,2]
[346177606,1734765074030,-500.0,0.00021366,2]
[346177607,1734765074039,-909.03,0.00021366,2]
[346177608,1734765074052,-1204.118159,0.00021366,2]
[346177609,1734765074062,-742.5,0.00021366,2]
[346177610,1734765074071,-810.145927,0.00021366,2]
[346177611,1734765074080,-534.19,0.00021366,2]
[346177612,1734765074090,-1459.91,0.00021366,2]
[346177613,1734765074100,-156.76574,0.00021366,2]
[346177614,1734765074110,-987.03,0.00021366,2]
[346177615,1734765074120,-1080.78,0.00021366,2]
[346177616,1734765074130,-167.353892,0.00021366,2]
[346177617,1734765074140,-500.0,0.00021366,2]
[346177618,1734765074150,-907.79,0.00021366,2]
[346177619,1734765074160,-5648.75,0.00021366,2]
[346177620,1734765074170,-1707.55,0.00021366,2]
[346177621,1734765074179,-500.0,0.00021366,2]
[346177622,1734765074189,-555.06,0.00021366,2]
[346177623,1734765074199,-4690.0,0.00021366,2]
[346177624,1734765074209,-500.0,0.00021367,2]
[346177625,1734765074219,-500.0,0.00021367,2]
[346177626,1734765074229,-500.0,0.00021367,2]
[346177627,1734765074239,-500.0,0.00021367,2]
[346177628,1734765074248,-500.0,0.00021367,2]
[346177629,1734765074258,-500.0,0.00021367,2]
[346177630,1734765074268,-500.0,0.00021367,2]
[346177631,1734765074278,-500.0,0.00021367,2]
[346177632,1734765074287,-500.0,0.00021367,2]
[346177633,1734765074302,-500.0,0.00021367,2]
[346177634,1734765074317,-500.0,0.00021367,2]
[346177635,1734765074327,-500.0,0.00021367,2]
[346177636,1734765074337,-500.0,0.00021367,2]
[346177637,1734765074347,-500.0,0.00021367,2]
[346177638,1734765074356,-500.0,0.00021367,2]
[346177639,1734765074366,-500.0,0.00021367,2]
[346177640,1734765074376,-500.0,0.00021367,2]
[346177641,1734765074386,-500.0,0.00021367,2]
[346177642,1734765074396,-500.0,0.00021367,2]
[346177643,1734765074405,-500.0,0.00021367,2]
[346177644,1734765074416,-500.0,0.00021367,2]
[346177645,1734765074425,-500.0,0.00021367,2]
[346177646,1734765074435,-500.0,0.00021367,2]
[346177647,1734765074445,-800.63,0.00021367,2]
[346177648,1734765074455,-500.0,0.00021367,2]
[346177649,1734765074465,-500.0,0.00021367,2]
[346177650,1734765074474,-500.0,0.00021367,2]
[346177651,1734765074483,-500.0,0.00021367,2]
[346177652,1734765074493,-557.93,0.00021367,2]
[346177653,1734765074503,-551.71610522,0.00021367,2]
[346177654,1734765074513,-564.53,0.00021367,2]
[346177655,1734765074523,-1097.94,0.00021367,2]
[346177656,1734765074532,-1312.98,0.00021367,2]
[346177657,1734765074541,-713.67,0.00021367,2]
[346177658,1734765074559,-545.6,0.00021367,2]
[346177659,1734765074570,-617.61,0.00021367,2]
[346177660,1734765074582,-500.0,0.00021367,2]
[346177661,1734765074591,-1027.31,0.00021367,2]
[346177662,1734765074601,-781.83,0.00021367,2]
[346177663,1734765074613,-839.23,0.00021367,2]
[346177664,1734765074626,-529.71,0.00021367,2]
[346177665,1734765074636,-1178.66,0.00021367,2]
[346177666,1734765074646,-2429.01,0.00021367,2]
[346177667,1734765074656,-500.0,0.00021367,2]
[346177668,1734765074665,-946.11,0.00021367,2]
[346177669,1734765074675,-500.0,0.00021367,2]
[346177670,1734765074684,-2009.81,0.00021367,2]
[346177671,1734765074694,-402.11975635,0.00021367,2]
[346177672,1734765074704,-832.29,0.00021367,2]
[346177673,1734765074714,-394.0662738,0.00021367,2]
[346177674,1734765074724,-553.19,0.00021368,2]
[346177675,1734765074734,-540.6,0.00021368,2]
[346177676,1734765074743,-500.0,0.00021368,2]
[346177677,1734765074752,-589.08,0.00021368,2]
[346177678,1734765074762,-691.96,0.00021368,2]
[346177679,1734765074772,-572.24,0.00021368,2]
[346177680,1734765074782,-711.14,0.00021368,2]
[346177681,1734765074791,-842.2,0.00021368,2]
[346177682,1734765074804,-356.29717884,0.00021368,2]
[346177683,1734765074814,-928.46,0.00021368,2]
[346177684,1734765074824,-500.0,0.00021368,2]
[346177685,1734765074834,-647.31,0.00021368,2]
[346177686,1734765074844,-921.84,0.00021368,2]
[346177687,1734765074854,-931.6,0.00021368,2]
[346177688,1734765074864,-679.34,0.00021368,2]
[346177689,1734765074873,-621.87,0.00021368,2]
[346177690,1734765074884,-707.66,0.00021368,2]
[346177691,1734765074893,-500.0,0.00021368,2]
[346177692,1734765074904,-1055.71,0.00021368,2]
[346177693,1734765074913,-812.57,0.00021368,2]
[346177694,1734765074923,-1167.67,0.00021368,2]
[346177695,1734765074933,-500.0,0.00021368,2]
[346177696,1734765074943,-505.48,0.00021368,2]
[346177697,1734765074953,-500.0,0.00021368,2]
[346177698,1734765074963,-500.0,0.00021368,2]
[346177699,1734765074973,-500.0,0.00021368,2]
[346177700,1734765074983,-803.44,0.00021368,2]
[346177701,1734765074993,-588.79,0.00021368,2]
[346177702,1734765075004,-427.55544576,0.00021368,2]
[346177703,1734765075014,-500.0,0.00021368,2]
[346177704,1734765075024,-500.0,0.00021368,2]
[346177705,1734765075034,-500.0,0.00021368,2]
[346177706,1734765075044,-520.04,0.00021369,2]
[346177707,1734765075054,-500.0,0.00021369,2]
[346177708,1734765075064,-500.0,0.00021369,2]
[346177709,1734765075073,-349.63721689,0.00021369,2]
[346177710,1734765075083,-488.74919159,0.00021369,2]
[346177711,1734765075093,-500.0,0.00021369,2]
[346177712,1734765075103,-500.0,0.00021369,2]
[346177713,1734765075113,-500.0,0.00021369,2]
[346177714,1734765075123,-500.0,0.00021369,2]
[346177715,1734765075132,-500.0,0.00021369,2]
[346177716,1734765075142,-500.0,0.00021369,2]
[346177717,1734765075152,-500.0,0.00021369,2]
[346177718,1734765075162,-500.0,0.00021369,2]
[346177719,1734765075172,-500.0,0.00021369,2]
[346177720,1734765075183,-500.0,0.00021369,2]
[346177721,1734765075192,-500.0,0.00021369,2]
[346177722,1734765075202,-500.0,0.00021369,2]
[346177723,1734765075212,-617.49,0.00021369,2]
[346177724,1734765075221,-500.0,0.00021369,2]
[346177725,1734765075231,-500.0,0.00021369,2]
[346177726,1734765075241,-500.0,0.00021369,2]
[346177727,1734765075251,-500.0,0.00021369,2]
[346177728,1734765075261,-500.0,0.00021369,2]
[346177729,1734765075271,-500.0,0.00021369,2]
[346177730,1734765075281,-614.48,0.00021369,2]
[346177731,1734765075290,-500.0,0.00021369,2]
[346177732,1734765075301,-500.0,0.00021369,2]
[346177733,1734765075310,-500.0,0.00021369,2]
[346177734,1734765075320,-500.0,0.00021369,2]
[346177735,1734765075330,-500.0,0.00021369,2]
[346177736,1734765075340,-500.0,0.00021369,2]
[346177737,1734765075350,-500.0,0.00021369,2]
[346177738,1734765075359,-500.0,0.00021369,2]
[346177739,1734765075369,-500.0,0.00021369,2]
[346177740,1734765075379,-569.52,0.00021369,2]
[346177741,1734765075389,-500.0,0.00021369,2]
[346177742,1734765075399,-500.0,0.00021369,2]
[346177743,1734765075409,-500.0,0.00021369,2]
[346177744,1734765075419,-500.0,0.00021369,2]
[346177745,1734765075429,-500.0,0.00021369,2]
[346177746,1734765075439,-500.0,0.00021369,2]
[346177747,1734765075449,-521.59,0.00021369,2]
[346177748,1734765075458,-618.79,0.00021369,2]
[346177749,1734765075469,-500.0,0.00021369,2]
[346177750,1734765075479,-526.53,0.00021369,2]
[346177751,1734765075489,-500.0,0.00021369,2]
[346177752,1734765075498,-500.0,0.00021369,2]
[346177753,1734765075508,-500.0,0.00021369,2]
[346177754,1734765075519,-500.0,0.00021369,2]
[346177755,1734765075528,-609.6,0.00021369,2]
[346177756,1734765075538,-500.0,0.00021369,2]
[346177757,1734765075548,-528.4,0.00021369,2]
[346177758,1734765075558,-523.51,0.00021369,2]
[346177759,1734765075568,-500.0,0.00021369,2]
[346177760,1734765075579,-643.44969154,0.00021369,2]
[346177761,1734765075589,-500.0,0.00021369,2]
[346177762,1734765075599,-500.0,0.00021369,2]
[346177763,1734765075609,-654.57,0.00021369,2]
[346177764,1734765075623,-500.0,0.00021369,2]
[346177765,1734765075633,-659.53,0.00021369,2]
[346177766,1734765075643,-530.0,0.00021369,2]
[346177767,1734765075653,-567.63,0.00021369,2]
[346177768,1734765075663,-500.0,0.00021369,2]
[346177769,1734765075673,-591.24,0.00021369,2]
[346177770,1734765075682,-500.0,0.00021369,2]
[346177771,1734765075694,-652.96,0.00021369,2]
[346177772,1734765075705,-500.0,0.00021369,2]
[346177773,1734765075919,-500.0,0.00021369,2]
[346177774,1734765075928,-500.0,0.00021369,2]
[346177775,1734765075939,-586.29,0.00021369,2]
[346177776,1734765075948,-500.0,0.00021369,2]
[346177777,1734765075958,-500.0,0.00021369,2]
[346177778,1734765075969,-500.0,0.00021369,2]
[346177779,1734765075979,-500.0,0.00021369,2]
[346177780,1734765075989,-500.0,0.00021369,2]
[346177781,1734765075998,-500.0,0.00021369,2]
[346177782,1734765076008,-500.0,0.00021369,2]
[346177783,1734765076018,-500.0,0.00021369,2]
[346177784,1734765076028,-500.0,0.00021369,2]
[346177785,1734765076038,-621.02240395,0.00021369,2]
[346177786,1734765076051,-500.0,0.00021369,2]
[346177787,1734765076060,-500.0,0.00021369,2]
[346177788,1734765076070,-500.0,0.00021369,2]
[346177789,1734765076080,-500.0,0.00021369,2]
[346177790,1734765076090,-645.7,0.00021369,2]
[346177791,1734765076099,-500.0,0.00021369,2]
[346177792,1734765076109,-500.0,0.00021369,2]
[346177793,1734765076119,-500.0,0.00021369,2]
[346177794,1734765076128,-500.0,0.00021369,2]
[346177795,1734765076138,-500.0,0.00021369,2]
[346177796,1734765076147,-554.92,0.00021369,2]
[346177797,1734765076157,-1268.03,0.00021369,2]
[346177798,1734765076167,-540.99,0.00021369,2]
[346177799,1734765076176,-1370.66,0.00021369,2]
[346177800,1734765076186,-500.0,0.00021369,2]
[346177801,1734765076196,-500.0,0.00021369,2]
[346177802,1734765076205,-562.67,0.00021369,2]
[346177803,1734765076214,-850.99,0.00021369,2]
[346177804,1734765076224,-602.91,0.00021369,2]
[346177805,1734765076234,-2360.29,0.00021369,2]
[346177806,1734765076247,-665.96,0.00021369,2]
[346177807,1734765076256,-600.01,0.00021369,2]
[346177808,1734765076266,-500.0,0.00021369,2]
[346177809,1734765076276,-2294.49,0.00021369,2]
[346177810,1734765076286,-500.0,0.00021369,2]
[346177811,1734765076296,-829.63,0.00021369,2]
[346177812,1734765076306,-500.0,0.00021369,2]
[346177813,1734765076317,-613.95,0.00021369,2]
[346177814,1734765076327,-1224.85,0.00021369,2]
[346177815,1734765076337,-956.64,0.00021369,2]
[346177816,1734765076346,-500.0,0.00021369,2]
[346177817,1734765076356,-390.34584846,0.00021369,2]
[346177818,1734765076365,-1849.46,0.00021369,2]
[346177819,1734765076375,-989.46,0.00021369,2]
[346177820,1734765076384,-500.0,0.00021369,2]
[346177821,1734765076393,-656.77,0.00021369,2]
[346177822,1734765076403,-500.0,0.00021369,2]
[346177823,1734765076413,-500.0,0.00021369,2]
[346177824,1734765076423,-574.74,0.00021369,2]
[346177825,1734765076432,-500.0,0.00021369,2]
[346177826,1734765076441,-516.88,0.00021369,2]
[346177827,1734765076451,-500.0,0.00021369,2]
[346177828,1734765076460,-696.16,0.00021369,2]
[346177829,1734765076470,-500.0,0.00021369,2]
[346177830,1734765076479,-525.51786966,0.00021369,2]
[346177831,1734765076489,-500.0,0.00021369,2]
[346177832,1734765076499,-779.16,0.00021369,2]
[346177833,1734765076509,-664.07,0.00021369,2]
[346177834,1734765076519,-500.0,0.00021369,2]
[346177835,1734765076529,-754.41,0.00021369,2]
[346177836,1734765076539,-598.65,0.00021369,2]
[346177837,1734765076549,-270.64657507,0.00021369,2]
[346177838,1734765076558,-537.46,0.00021369,2]
[346177839,1734765076568,-500.0,0.00021369,2]
[346177840,1734765076580,-1040.23,0.00021369,2]
[346177841,1734765076591,-550.54,0.00021369,2]
[346177842,1734765076601,-609.74,0.00021369,2]
[346177843,1734765076610,-1545.76,0.00021369,2]
[346177844,1734765076623,-2251.73,0.00021369,2]
[346177845,1734765076632,-500.0,0.00021369,2]
[346177846,1734765076641,-500.0,0.00021369,2]
[346177847,1734765076652,-500.0,0.00021369,2]
[346177848,1734765076662,-667.89,0.00021369,2]
[346177849,1734765076672,-858.31,0.00021369,2]
[346177850,1734765076682,-910.96,0.00021369,2]
[346177851,1734765076691,-525.83,0.00021369,2]
[346177852,1734765076701,-675.58,0.00021369,2]
[346177853,1734765076711,-1257.52,0.00021369,2]
[346177854,1734765076720,-691.15,0.00021369,2]
[346177855,1734765076730,-500.0,0.00021369,2]
[346177856,1734765076740,-588.56,0.00021369,2]
[346177857,1734765076750,-535.87,0.00021369,2]
[346177858,1734765076759,-1844.44,0.00021369,2]
[346177859,1734765076769,-1112.66,0.00021369,2]
[346177860,1734765076779,-500.0,0.00021369,2]
[346177861,1734765076789,-3778.3,0.00021369,2]
[346177862,1734765076801,-743.81,0.00021369,2]
[346177863,1734765076811,-763.06,0.00021369,2]
[346177864,1734765076822,-971.73,0.00021369,2]
[346177865,1734765076831,-2008.55,0.00021369,2]
[346177866,1734765076841,-365.32118097,0.00021369,2]
[346177867,1734765076851,-695.31,0.00021369,2]
[346177868,1734765076860,-4156.22,0.00021369,2]
[346177869,1734765076870,-545.8,0.00021369,2]
[346177870,1734765076880,-500.0,0.00021369,2]
[346177871,1734765076890,-1066.88,0.00021369,2]
[346177872,1734765076900,-8814.31,0.00021369,2]
[346177873,1734765076910,-641.57,0.00021369,2]
[346177874,1734765076920,-500.0,0.00021369,2]
[346177875,1734765076930,-1201.21,0.00021369,2]
[346177876,1734765076939,-1027.94,0.00021369,2]
[346177877,1734765076949,-2074.99,0.00021369,2]
[346177878,1734765076959,-986.58,0.00021369,2]
[346177879,1734765076968,-832.32,0.00021369,2]
[346177880,1734765076978,-649.16,0.00021369,2]
[346177881,1734765076988,-892.74,0.00021369,2]
[346177882,1734765076997,-594.18,0.00021369,2]
[346177883,1734765077007,-1670.61,0.00021369,2]
[346177884,1734765077016,-679.53,0.00021369,2]
[346177885,1734765077026,-922.69,0.00021369,2]
[346177886,1734765077035,-850.92,0.00021369,2]
[346177887,1734765077048,-2604.91,0.00021369,2]
[346177888,1734765077058,-679.02,0.00021369,2]
[346177889,1734765077069,-639.51,0.00021369,2]
[346177890,1734765077079,-597.41,0.00021369,2]
[346177891,1734765077090,-539.08,0.00021369,2]
[346177892,1734765077100,-936.04,0.00021369,2]
[346177893,1734765077110,-500.0,0.00021369,2]
[346177894,1734765077120,-667.52,0.00021369,2]
[346177895,1734765077130,-1171.35,0.00021369,2]
[346177896,1734765077139,-500.0,0.00021369,2]
[346177897,1734765077149,-500.0,0.00021369,2]
[346177898,1734765077159,-693.7,0.00021369,2]
[346177899,1734765077168,-828.43,0.00021369,2]
[346177900,1734765077178,-572.81,0.00021369,2]
[346177901,1734765077188,-1349.96,0.00021369,2]
[346177902,1734765077197,-4988.53,0.00021369,2]
[346177903,1734765077207,-903.09,0.00021369,2]
[346177904,1734765077217,-1611.49,0.00021369,2]
[346177905,1734765077227,-880.44,0.00021369,2]
[346177906,1734765077237,-500.0,0.00021369,2]
[346177907,1734765077246,-549.29,0.0002137,2]
[346177908,1734765077256,-422.75717781,0.000214,2]
[346177909,1734765077266,-600.0,0.0002142,5]
[346177910,1734765077275,-1506.45226281,0.00021452,2]
[346177911,1734765077284,-14392.52143959,0.0002149,2]
[346177912,1734765077294,-5000.0,0.000215,2]
[346177913,1734765077305,-1500.0,0.00021508,2]
[346177914,1734765077315,-251.233,0.00021557,2]
[346177915,1734765077324,-150.22,0.00021557,2]
[346177916,1734765077333,-1265.0,0.00021557,2]
[346177917,1734765077343,-2010.0,0.00021557,2]
[346177918,1734765077352,-632.0,0.00021557,2]
[346177919,1734765077361,-150.0,0.00021557,2]
[346177920,1734765077371,-565.0,0.00021557,2]
[346177921,1734765077380,-1898.0,0.00021557,2]
[346177922,1734765077389,-925.0,0.00021557,2]
[346177923,1734765077399,-3769.0,0.00021557,2]
[346177924,1734765077409,-818.0,0.00021557,2]
[346177925,1734765077419,-1255.0,0.00021557,2]
[346177926,1734765077428,-3681.0,0.00021557,2]
[346177927,1734765077438,-536.0,0.00021557,2]
[346177928,1734765077447,-13754.0,0.00021557,2]
[346177929,1734765077457,-3886.0,0.00021557,2]
[346177930,1734765077466,-1170.0,0.00021557,2]
[346177931,1734765077475,-293.681,0.00021557,2]
[346177932,1734765077484,-444.084,0.00021557,2]
[346177933,1734765077494,-1506.45226281,0.00021562,2]
[346177934,1734765077503,-500.0,0.0002164,2]
[346177935,1734765077514,-609.12,0.0002164,2]
[346177936,1734765077523,-731.44,0.0002164,2]
[346177937,1734765077532,-500.0,0.0002164,2]
[346177938,1734765077542,-500.0,0.0002164,2]
[346177939,1734765077552,-909.03,0.0002164,2]
[346177940,1734765077562,-1204.118159,0.0002164,2]
[346177941,1734765077571,-742.5,0.0002164,2]
[346177942,1734765077584,-152.502649,0.0002164,2]
[346177943,1734765077593,-810.145927,0.0002164,2]
[346177944,1734765077602,-534.19,0.0002164,2]
[346177945,1734765077612,-1459.91,0.0002164,2]
[346177946,1734765077625,-156.76574,0.0002164,2]
[346177947,1734765077635,-987.03,0.0002164,2]
[346177948,1734765077644,-1080.78,0.0002164,2]
[346177949,1734765077653,-167.353892,0.0002164,2]
[346177950,1734765077662,-907.79,0.0002164,2]
[346177951,1734765077672,-5648.75,0.0002164,2]
[346177952,1734765077681,-1707.55,0.0002164,2]
[346177953,1734765077692,-500.0,0.0002164,2]
[346177954,1734765077701,-555.06,0.0002164,2]
[346177955,1734765077710,-4690.0,0.0002164,2]
[346177956,1734765077719,-500.0,0.00021641,2]
[346177957,1734765077729,-500.0,0.00021641,2]
[346177958,1734765077738,-500.0,0.00021641,2]
[346177959,1734765077747,-500.0,0.00021641,2]
[346177960,1734765077756,-500.0,0.00021641,2]
[346177961,1734765077766,-500.0,0.00021641,2]
[346177962,1734765077776,-500.0,0.00021641,2]
[346177963,1734765077785,-500.0,0.00021641,2]
[346177964,1734765077795,-500.0,0.00021641,2]
[346177965,1734765077805,-500.0,0.00021641,2]
[346177966,1734765077815,-500.0,0.00021641,2]
[346177967,1734765077824,-500.0,0.00021641,2]
[346177968,1734765077833,-500.0,0.00021641,2]
[346177969,1734765077842,-500.0,0.00021641,2]
[346177970,1734765077851,-500.0,0.00021641,2]
[346177971,1734765077860,-500.0,0.00021641,2]
[346177972,1734765077871,-500.0,0.00021641,2]
[346177973,1734765077880,-500.0,0.00021641,2]
[346177974,1734765077890,-500.0,0.00021641,2]
[346177975,1734765077899,-500.0,0.00021641,2]
[346177976,1734765077909,-500.0,0.00021641,2]
[346177977,1734765077918,-500.0,0.00021641,2]
[346177978,1734765077928,-500.0,0.00021641,2]
[346177979,1734765077937,-800.63,0.00021641,2]
[346177980,1734765077946,-500.0,0.00021641,2]
[346177981,1734765077956,-500.0,0.00021641,2]
[346177982,1734765077965,-500.0,0.00021641,2]
[346177983,1734765077975,-500.0,0.00021641,2]
[346177984,1734765077984,-557.93,0.00021641,2]
[346177985,1734765077994,-564.53,0.00021641,2]
[346177986,1734765078003,-1097.94,0.00021641,2]
[346177987,1734765078012,-1312.98,0.00021641,2]
[346177988,1734765078024,-713.67,0.00021641,2]
[346177989,1734765078034,-545.6,0.00021641,2]
[346177990,1734765078045,-617.61,0.00021641,2]
[346177991,1734765078056,-500.0,0.00021641,2]
[346177992,1734765078066,-1027.31,0.00021641,2]
[346177993,1734765078075,-781.83,0.00021641,2]
[346177994,1734765078085,-839.23,0.00021641,2]
[346177995,1734765078094,-529.71,0.00021641,2]
[346177996,1734765078104,-1178.66,0.00021641,2]
[346177997,1734765078114,-2429.01,0.00021641,2]
[346177998,1734765078123,-500.0,0.00021641,2]
[346177999,1734765078133,-946.11,0.00021641,2]
[346178000,1734765078142,-500.0,0.00021641,2]
[346178001,1734765078152,-2009.81,0.00021641,2]
[346178002,1734765078161,-832.29,0.00021641,2]
[346178003,1734765078171,-553.19,0.00021642,2]
[346178004,1734765078181,-540.6,0.00021642,2]
[346178005,1734765078190,-500.0,0.00021642,2]
[346178006,1734765078199,-589.08,0.00021642,2]
[346178007,1734765078209,-691.96,0.00021642,2]
[346178008,1734765078218,-572.24,0.00021642,2]
[346178009,1734765078227,-711.14,0.00021642,2]
[346178010,1734765078301,-842.2,0.00021642,2]
[346178011,1734765078311,-928.46,0.00021642,2]
[346178012,1734765078320,-500.0,0.00021642,2]
[346178013,1734765078330,-647.31,0.00021642,2]
[346178014,1734765078340,-921.84,0.00021642,2]
[346178015,1734765078350,-931.6,0.00021642,2]
[346178016,1734765078359,-679.34,0.00021642,2]
[346178017,1734765078368,-621.87,0.00021642,2]
[346178018,1734765078378,-707.66,0.00021642,2]
[346178019,1734765078388,-500.0,0.00021642,2]
[346178020,1734765078397,-1055.71,0.00021642,2]
[346178021,1734765078408,-812.57,0.00021642,2]
[346178022,1734765078417,-1167.67,0.00021642,2]
[346178023,1734765078427,-500.0,0.00021642,2]
[346178024,1734765078437,-505.48,0.00021642,2]
[346178025,1734765078446,-500.0,0.00021642,2]
[346178026,1734765078456,-500.0,0.00021642,2]
[346178027,1734765078466,-500.0,0.00021642,2]
[346178028,1734765078475,-803.44,0.00021642,2]
[346178029,1734765078485,-588.79,0.00021642,2]
[346178030,1734765078494,-500.0,0.00021642,2]
[346178031,1734765078504,-500.0,0.00021642,2]
[346178032,1734765078514,-570.26139161,0.00021642,2]
[346178033,1734765078523,-520.04,0.00021643,2]
[346178034,1734765078533,-518.62408193,0.00021643,2]
[346178035,1734765078542,-228.95670384,0.00021643,2]
[346178036,1734765078553,-500.0,0.00021643,2]
[346178037,1734765078562,-643.97366335,0.00021643,2]
[346178038,1734765078573,-500.0,0.00021643,2]
[346178039,1734765078585,-500.0,0.00021643,2]
[346178040,1734765078595,-500.0,0.00021643,2]
[346178041,1734765078604,-500.0,0.00021643,2]
[346178042,1734765078614,-500.0,0.00021643,2]
[346178043,1734765078627,-500.0,0.00021643,2]
[346178044,1734765078639,-500.0,0.00021643,2]
[346178045,1734765078648,-500.0,0.00021643,2]
[346178046,1734765078657,-630.70009255,0.00021643,2]
[346178047,1734765078667,-500.0,0.00021643,2]
[346178048,1734765078676,-617.49,0.00021643,2]
[346178049,1734765078686,-229.66182748,0.00021643,2]
[346178050,1734765078695,-500.0,0.00021643,2]
[346178051,1734765078705,-500.0,0.00021643,2]
[346178052,1734765078715,-500.0,0.00021643,2]
[346178053,1734765078724,-500.0,0.00021643,2]
[346178054,1734765078734,-207.98352363,0.00021643,2]
[346178055,1734765078743,-614.48,0.00021643,2]
[346178056,1734765078753,-500.0,0.00021643,2]
[346178057,1734765078762,-500.0,0.00021643,2]
[346178058,1734765078772,-500.0,0.00021643,2]
[346178059,1734765078782,-500.0,0.00021643,2]
[346178060,1734765078791,-500.0,0.00021643,2]
[346178061,1734765078802,-500.0,0.00021643,2]
[346178062,1734765078811,-500.0,0.00021643,2]
[346178063,1734765078820,-500.0,0.00021643,2]
[346178064,1734765078830,-500.0,0.00021643,2]
[346178065,1734765078840,-569.52,0.00021643,2]
[346178066,1734765078850,-500.0,0.00021643,2]
[346178067,1734765078859,-500.0,0.00021643,2]
[346178068,1734765078870,-500.0,0.00021643,2]
[346178069,1734765078880,-500.0,0.00021643,2]
[346178070,1734765078892,-338.37748021,0.00021643,2]
[346178071,1734765078905,-500.0,0.00021643,2]
[346178072,1734765078916,-521.59,0.00021643,2]
[346178073,1734765078925,-618.79,0.00021643,2]
[346178074,1734765078935,-500.0,0.00021643,2]
[346178075,1734765078949,-526.53,0.00021643,2]
[346178076,1734765078959,-500.0,0.00021643,2]
[346178077,1734765078969,-500.0,0.00021643,2]
[346178078,1734765078979,-500.0,0.00021643,2]
[346178079,1734765078989,-500.0,0.00021643,2]
[346178080,1734765078999,-609.6,0.00021643,2]
[346178081,1734765079008,-500.0,0.00021643,2]
[346178082,1734765079018,-528.4,0.00021643,2]
[346178083,1734765079027,-523.51,0.00021643,2]
[346178084,1734765079038,-500.0,0.00021643,2]
[346178085,1734765079049,-500.0,0.00021643,2]
[346178086,1734765079060,-500.0,0.00021643,2]
[346178087,1734765079070,-654.57,0.00021643,2]